{"text_format":"1","workbook":"xlsx","n_sheets":3,"sheets":["Product list","Product Detail","Product list (detail)"],"not_rendered":{"charts":0,"images":3,"macros":1,"external_links":0,"defined_names":1,"comments":0,"pivot_tables":0},"unopened":[],"bounds":{"document_bytes":16777216,"sheet_cells":100000,"rows_first":2000,"rows_last":500,"rows_between":2000,"halvings":0,"cell_chars":16384,"cell_head_chars":4096},"cells_cut":0,"cells_raw":0,"read":"whole","date_system":"1900"}

{"sheet":"Product list","index":0,"n_rows":106,"n_cols":9,"rows_kept":106,"cut":false,"hidden":false,"merged":[]}
[{"$f":"'Product list (detail)'!B1","v":"Наименование изделия\nMaterial description: (ENG)"},{"$f":"'Product list (detail)'!C1","v":"Наименование изделия\nMaterial description: (RU)"},{"$f":"'Product list (detail)'!A1","v":"Код\nCode"},{"$f":"'Product list (detail)'!D1","v":"Цена за единицу\nPrice per unit (EURO):"},{"$f":"'Product list (detail)'!E1","v":"Товарная единица\nPackaging unit:"},"???","???","???","???"]
[{"$f":"'Product list (detail)'!B2","v":"HE 25cl Plastic beercup (25 x 75 units in a box)"},{"$f":"'Product list (detail)'!C2","v":"HE стакан пластиковый 0.25 л"},{"$f":"'Product list (detail)'!A2","v":"94304451"},{"$f":"'Product list (detail)'!D2","v":32.864000000000004},{"$f":"'Product list (detail)'!E2","v":"Box"}]
[{"$f":"'Product list (detail)'!B3","v":"HE ashtray 12 cm (small)"},{"$f":"'Product list (detail)'!C3","v":"HE пепельница малая 12 см"},{"$f":"'Product list (detail)'!A3","v":"94300585"},{"$f":"'Product list (detail)'!D3","v":1.1440000000000001},{"$f":"'Product list (detail)'!E3","v":"Item"}]
[{"$f":"'Product list (detail)'!B4","v":"HE ashtray 18 cm (large)"},{"$f":"'Product list (detail)'!C4","v":"HE пепельница большая 18 см"},{"$f":"'Product list (detail)'!A4","v":"94300575"},{"$f":"'Product list (detail)'!D4","v":2.444},{"$f":"'Product list (detail)'!E4","v":"Item"}]
[{"$f":"'Product list (detail)'!B5","v":"HE ashtray glass (6pcs)"},{"$f":"'Product list (detail)'!C5","v":"HE пепельница стеклянная 6 шт."},{"$f":"'Product list (detail)'!A5","v":"94980035"},{"$f":"'Product list (detail)'!D5","v":5.7330000000000005},{"$f":"'Product list (detail)'!E5","v":"Box"}]
[{"$f":"'Product list (detail)'!B6","v":"HE ashtray windproof"},{"$f":"'Product list (detail)'!C6","v":"HE пепельница с крышкой большая"},{"$f":"'Product list (detail)'!A6","v":"94300555"},{"$f":"'Product list (detail)'!D6","v":3.835},{"$f":"'Product list (detail)'!E6","v":"Item"}]
[{"$f":"'Product list (detail)'!B7","v":"HE ashtray windproof small"},{"$f":"'Product list (detail)'!C7","v":"HE пепельница с крышкой малая"},{"$f":"'Product list (detail)'!A7","v":"94300550"},{"$f":"'Product list (detail)'!D7","v":2.8080000000000003},{"$f":"'Product list (detail)'!E7","v":"Item"}]
[{"$f":"'Product list (detail)'!B8","v":"HE backpack"},{"$f":"'Product list (detail)'!C8","v":"HE рюкзак"},{"$f":"'Product list (detail)'!A8","v":"94302805"},{"$f":"'Product list (detail)'!D8","v":7.657},{"$f":"'Product list (detail)'!E8","v":"Item"}]
[{"$f":"'Product list (detail)'!B9","v":"HE backpack 'active'"},{"$f":"'Product list (detail)'!C9","v":"HE рюкзак \"Актив\""},{"$f":"'Product list (detail)'!A9","v":"94902806"},{"$f":"'Product list (detail)'!D9","v":11.648000000000001},{"$f":"'Product list (detail)'!E9","v":"Item"}]
[{"$f":"'Product list (detail)'!B10","v":"HE ballpoint"},{"$f":"'Product list (detail)'!C10","v":"HE ручка шариковая"},{"$f":"'Product list (detail)'!A10","v":"88001376"},{"$f":"'Product list (detail)'!D10","v":0.47},{"$f":"'Product list (detail)'!E10","v":"Item"}]
[{"$f":"'Product list (detail)'!B11","v":"HE ballpoint \"gimmick\""},{"$f":"'Product list (detail)'!C11","v":"HE ручка \"Паркер\""},{"$f":"'Product list (detail)'!A11","v":"94300735"},{"$f":"'Product list (detail)'!D11","v":3.718},{"$f":"'Product list (detail)'!E11","v":"Item"}]
[{"$f":"'Product list (detail)'!B12","v":"HE banner 60*2500cm (roll)"},{"$f":"'Product list (detail)'!C12","v":"HE транспарант 0.6 х 25.0 м (рулон)"},{"$f":"'Product list (detail)'!A12","v":"94308220"},{"$f":"'Product list (detail)'!D12","v":66.066000000000003},{"$f":"'Product list (detail)'!E12","v":"Item"}]
[{"$f":"'Product list (detail)'!B13","v":"HE banner 120*5000cm (roll)"},{"$f":"'Product list (detail)'!C13","v":"HE транспарант 1.2 х 50.0 м (рулон)"},{"$f":"'Product list (detail)'!A13","v":"94308221"},{"$f":"'Product list (detail)'!D13","v":297.32300000000004},{"$f":"'Product list (detail)'!E13","v":"Item"}]
[{"$f":"'Product list (detail)'!B14","v":"HE bartenders apron"},{"$f":"'Product list (detail)'!C14","v":"HE фартук бармена"},{"$f":"'Product list (detail)'!A14","v":"94300811"},{"$f":"'Product list (detail)'!D14","v":8.229000000000001},{"$f":"'Product list (detail)'!E14","v":"Item"}]
[{"$f":"'Product list (detail)'!B15","v":"HE bartowel \"Star Heineken\""},{"$f":"'Product list (detail)'!C15","v":"HE полотенце барное "},{"$f":"'Product list (detail)'!A15","v":"94300713"},{"$f":"'Product list (detail)'!D15","v":0.97499999999999998},{"$f":"'Product list (detail)'!E15","v":"Item"}]
[{"$f":"'Product list (detail)'!B16","v":"HE baseballcap green \"Star\""},{"$f":"'Product list (detail)'!C16","v":"HE кепка зеленая \"звезда\""},{"$f":"'Product list (detail)'!A16","v":"94300835"},{"$f":"'Product list (detail)'!D16","v":1.3520000000000001},{"$f":"'Product list (detail)'!E16","v":"Item"}]
[{"$f":"'Product list (detail)'!B17","v":"HE Beermatholder One Meaning"},{"$f":"'Product list (detail)'!C17","v":"HE держатель подстаканников"},{"$f":"'Product list (detail)'!A17","v":"88000114"},{"$f":"'Product list (detail)'!D17","v":1.573},{"$f":"'Product list (detail)'!E17","v":"Item"}]
[{"$f":"'Product list (detail)'!B18","v":"HE beermats PQ roll of 85 pcs"},{"$f":"'Product list (detail)'!C18","v":"HE подстаканники (рулон 85 шт.)"},{"$f":"'Product list (detail)'!A18","v":"94300620"},{"$f":"'Product list (detail)'!D18","v":1.274},{"$f":"'Product list (detail)'!E18","v":"Roll"}]
[{"$f":"'Product list (detail)'!B19","v":"HE beermats waiter's tray (15 pcs)"},{"$f":"'Product list (detail)'!C19","v":"HE подстаканники для подноса (15 шт.)"},{"$f":"'Product list (detail)'!A19","v":"94300600"},{"$f":"'Product list (detail)'!D19","v":2.8080000000000003},{"$f":"'Product list (detail)'!E19","v":"Roll"}]
[{"$f":"'Product list (detail)'!B20","v":"HE Beermug 0,5l \"delft\"green"},{"$f":"'Product list (detail)'!C20","v":"HE кружка керамическая зеленая 0.5 л"},{"$f":"'Product list (detail)'!A20","v":"94291061"},{"$f":"'Product list (detail)'!D20","v":6.0449999999999999},{"$f":"'Product list (detail)'!E20","v":"Item"}]
[{"$f":"'Product list (detail)'!B21","v":"HE bottle opener luxury"},{"$f":"'Product list (detail)'!C21","v":"HE открывашка престижная"},{"$f":"'Product list (detail)'!A21","v":"88001346"},{"$f":"'Product list (detail)'!D21","v":1.95},{"$f":"'Product list (detail)'!E21","v":"Item"}]
[{"$f":"'Product list (detail)'!B22","v":"HE bottle opener spring rule"},{"$f":"'Product list (detail)'!C22","v":"HE открывашка пружинная"},{"$f":"'Product list (detail)'!A22","v":"94296445"},{"$f":"'Product list (detail)'!D22","v":2.8080000000000003},{"$f":"'Product list (detail)'!E22","v":"Item"}]
[{"$f":"'Product list (detail)'!B23","v":"HE bottle opener standard"},{"$f":"'Product list (detail)'!C23","v":"HE открывашка стандартная"},{"$f":"'Product list (detail)'!A23","v":"88001345"},{"$f":"'Product list (detail)'!D23","v":0.11699999999999999},{"$f":"'Product list (detail)'!E23","v":"Item"}]
[{"$f":"'Product list (detail)'!B24","v":"HE bow bag"},{"$f":"'Product list (detail)'!C24","v":"HE дорожная сумка"},{"$f":"'Product list (detail)'!A24","v":"94302825"},{"$f":"'Product list (detail)'!D24","v":8.8529999999999998},{"$f":"'Product list (detail)'!E24","v":"Item"}]
[{"$f":"'Product list (detail)'!B25","v":"HE bunting"},{"$f":"'Product list (detail)'!C25","v":"HE флажки \"волчатник\""},{"$f":"'Product list (detail)'!A25","v":"94304612"},{"$f":"'Product list (detail)'!D25","v":14.196},{"$f":"'Product list (detail)'!E25","v":"Item"}]
[{"$f":"'Product list (detail)'!B26","v":"HE cd-crate (green)"},{"$f":"'Product list (detail)'!C26","v":"HE коробка для CD "},{"$f":"'Product list (detail)'!A26","v":"94300950"},{"$f":"'Product list (detail)'!D26","v":1.911},{"$f":"'Product list (detail)'!E26","v":"Item"}]
[{"$f":"'Product list (detail)'!B27","v":"HE bottle opener countertop"},{"$f":"'Product list (detail)'!C27","v":"HE отерывашка стационарная"},{"$f":"'Product list (detail)'!A27","v":"94306510"},{"$f":"'Product list (detail)'!D27","v":29.471000000000004},{"$f":"'Product list (detail)'!E27","v":"Item"}]
[{"$f":"'Product list (detail)'!B28","v":"HE Bottle opener crowncork"},{"$f":"'Product list (detail)'!C28","v":"HE открывашка \"пробка\""},{"$f":"'Product list (detail)'!A28","v":"94296491"},{"$f":"'Product list (detail)'!D28","v":1.0270000000000001},{"$f":"'Product list (detail)'!E28","v":"Item"}]
[{"$f":"'Product list (detail)'!B29","v":"HE dress (36) trendline"},{"$f":"'Product list (detail)'!C29","v":"HE платье 36 размер"},{"$f":"'Product list (detail)'!A29","v":"90122036"},{"$f":"'Product list (detail)'!D29","v":20.917000000000002},{"$f":"'Product list (detail)'!E29","v":"Item"}]
[{"$f":"'Product list (detail)'!B30","v":"HE dress (38) trendline"},{"$f":"'Product list (detail)'!C30","v":"HE платье 38 размер"},{"$f":"'Product list (detail)'!A30","v":"90122038"},{"$f":"'Product list (detail)'!D30","v":20.917000000000002},{"$f":"'Product list (detail)'!E30","v":"Item"}]
[{"$f":"'Product list (detail)'!B31","v":"HE dress (42) trendline"},{"$f":"'Product list (detail)'!C31","v":"HE платье 42 размер"},{"$f":"'Product list (detail)'!A31","v":"90122042"},{"$f":"'Product list (detail)'!D31","v":20.917000000000002},{"$f":"'Product list (detail)'!E31","v":"Item"}]
[{"$f":"'Product list (detail)'!B32","v":"HE executive bag"},{"$f":"'Product list (detail)'!C32","v":"HE портфель рабочий"},{"$f":"'Product list (detail)'!A32","v":"94302820"},{"$f":"'Product list (detail)'!D32","v":9.5810000000000013},{"$f":"'Product list (detail)'!E32","v":"Item"}]
[{"$f":"'Product list (detail)'!B33","v":"HE fisherman's hat"},{"$f":"'Product list (detail)'!C33","v":"HE шапка рыболова"},{"$f":"'Product list (detail)'!A33","v":"88001377"},{"$f":"'Product list (detail)'!D33","v":2.6260000000000003},{"$f":"'Product list (detail)'!E33","v":"Item"}]
[{"$f":"'Product list (detail)'!B34","v":"HE flag 100x150 cm"},{"$f":"'Product list (detail)'!C34","v":"HE флаг 100 х 150 см"},{"$f":"'Product list (detail)'!A34","v":"94309513"},{"$f":"'Product list (detail)'!D34","v":5.4859999999999998},{"$f":"'Product list (detail)'!E34","v":"Item"}]
[{"$f":"'Product list (detail)'!B35","v":"HE flag 150x225 cm export"},{"$f":"'Product list (detail)'!C35","v":"HE флаг 150 х 225 см"},{"$f":"'Product list (detail)'!A35","v":"94309516"},{"$f":"'Product list (detail)'!D35","v":16.224},{"$f":"'Product list (detail)'!E35","v":"Item"}]
[{"$f":"'Product list (detail)'!B36","v":"HE flag 200x300 cm export"},{"$f":"'Product list (detail)'!C36","v":"HE флаг 200 х 300 см"},{"$f":"'Product list (detail)'!A36","v":"94309522"},{"$f":"'Product list (detail)'!D36","v":23.01},{"$f":"'Product list (detail)'!E36","v":"Item"}]
[{"$f":"'Product list (detail)'!B37","v":"HE floatable keyring"},{"$f":"'Product list (detail)'!C37","v":"HE брелок плавающий"},{"$f":"'Product list (detail)'!A37","v":"88001347"},{"$f":"'Product list (detail)'!D37","v":0.50700000000000001},{"$f":"'Product list (detail)'!E37","v":"Item"}]
[{"$f":"'Product list (detail)'!B38","v":"HE Glasses superprestige 30cl 6pcs"},{"$f":"'Product list (detail)'!C38","v":"HE фужер \"супер престиж\" 30 мл 6 шт."},{"$f":"'Product list (detail)'!A38","v":"88001344"},{"$f":"'Product list (detail)'!D38","v":8.4890000000000008},{"$f":"'Product list (detail)'!E38","v":"Box"}]
[{"$f":"'Product list (detail)'!B39","v":"HE ice bucket (green)"},{"$f":"'Product list (detail)'!C39","v":"HE ведро для льда (зеленое)"},{"$f":"'Product list (detail)'!A39","v":"88001313"},{"$f":"'Product list (detail)'!D39","v":5.109},{"$f":"'Product list (detail)'!E39","v":"Item"}]
[{"$f":"'Product list (detail)'!B40","v":"HE ill.outdoorsign 78cm 220v"},{"$f":"'Product list (detail)'!C40","v":"HE световой знак наружный 220 в"},{"$f":"'Product list (detail)'!A40","v":"94305400"},{"$f":"'Product list (detail)'!D40","v":175.20100000000002},{"$f":"'Product list (detail)'!E40","v":"Item"}]
[{"$f":"'Product list (detail)'!B41","v":"HE Lighter One Meaning"},{"$f":"'Product list (detail)'!C41","v":"HE зажигалка"},{"$f":"'Product list (detail)'!A41","v":"88001339"},{"$f":"'Product list (detail)'!D41","v":1.274},{"$f":"'Product list (detail)'!E41","v":"Item"}]
[{"$f":"'Product list (detail)'!B42","v":"HE Lighter ZIPPO matchroom"},{"$f":"'Product list (detail)'!C42","v":"HE зажигалка \"ZIPPO\" "},{"$f":"'Product list (detail)'!A42","v":"88000260"},{"$f":"'Product list (detail)'!D42","v":15.638999999999999},{"$f":"'Product list (detail)'!E42","v":"Item"}]
[{"$f":"'Product list (detail)'!B43","v":"HE mirror \"Customized\""},{"$f":"'Product list (detail)'!C43","v":"HE зеркало "},{"$f":"'Product list (detail)'!A43","v":"94297065"},{"$f":"'Product list (detail)'!D43","v":37.609000000000002},{"$f":"'Product list (detail)'!E43","v":"Item"}]
[{"$f":"'Product list (detail)'!B44","v":"HE necktie \"classic\""},{"$f":"'Product list (detail)'!C44","v":"HE галстук \"классик\""},{"$f":"'Product list (detail)'!A44","v":"94298420"},{"$f":"'Product list (detail)'!D44","v":21.891999999999999},{"$f":"'Product list (detail)'!E44","v":"Item"}]
[{"$f":"'Product list (detail)'!B45","v":"HE necktie \"modern\""},{"$f":"'Product list (detail)'!C45","v":"HE галстук \"модерн\""},{"$f":"'Product list (detail)'!A45","v":"94298421"},{"$f":"'Product list (detail)'!D45","v":17.783999999999999},{"$f":"'Product list (detail)'!E45","v":"Item"}]
[{"$f":"'Product list (detail)'!B46","v":"HE notepad"},{"$f":"'Product list (detail)'!C46","v":"HE блокнот"},{"$f":"'Product list (detail)'!A46","v":"88001297"},{"$f":"'Product list (detail)'!D46","v":3.3929999999999998},{"$f":"'Product list (detail)'!E46","v":"Item"}]
[{"$f":"'Product list (detail)'!B47","v":"HE open/closed sign"},{"$f":"'Product list (detail)'!C47","v":"HE открыто/закрыто"},{"$f":"'Product list (detail)'!A47","v":"94296004"},{"$f":"'Product list (detail)'!D47","v":2.9510000000000001},{"$f":"'Product list (detail)'!E47","v":"Item"}]
[{"$f":"'Product list (detail)'!B48","v":"HE Pen set"},{"$f":"'Product list (detail)'!C48","v":"HE набор ручек"},{"$f":"'Product list (detail)'!A48","v":"94300733"},{"$f":"'Product list (detail)'!D48","v":11.362},{"$f":"'Product list (detail)'!E48","v":"Item"}]
[{"$f":"'Product list (detail)'!B49","v":"HE playing cards (52 pcs)"},{"$f":"'Product list (detail)'!C49","v":"HE карты игральные (52 шт.)"},{"$f":"'Product list (detail)'!A49","v":"88001342"},{"$f":"'Product list (detail)'!D49","v":0.58499999999999996},{"$f":"'Product list (detail)'!E49","v":"Item"}]
[{"$f":"'Product list (detail)'!B50","v":"HE playing cards in min beercarton"},{"$f":"'Product list (detail)'!C50","v":"HE карты игральные в коробке"},{"$f":"'Product list (detail)'!A50","v":"94298253"},{"$f":"'Product list (detail)'!D50","v":2.0020000000000002},{"$f":"'Product list (detail)'!E50","v":"Item"}]
[{"$f":"'Product list (detail)'!B51","v":"HE poloshirt (L) green mainstream"},{"$f":"'Product list (detail)'!C51","v":"HE рубашка поло зеленая обычная (L)"},{"$f":"'Product list (detail)'!A51","v":"90121060"},{"$f":"'Product list (detail)'!D51","v":10.595000000000001},{"$f":"'Product list (detail)'!E51","v":"Item"}]
[{"$f":"'Product list (detail)'!B52","v":"HE poloshirt (L) white mainstream"},{"$f":"'Product list (detail)'!C52","v":"HE рубашка поло белая обычная (L)"},{"$f":"'Product list (detail)'!A52","v":"90121056"},{"$f":"'Product list (detail)'!D52","v":10.595000000000001},{"$f":"'Product list (detail)'!E52","v":"Item"}]
[{"$f":"'Product list (detail)'!B53","v":"HE poloshirt (M) green mainstream"},{"$f":"'Product list (detail)'!C53","v":"HE рубашка поло зеленая обычная (M)"},{"$f":"'Product list (detail)'!A53","v":"90121059"},{"$f":"'Product list (detail)'!D53","v":10.595000000000001},{"$f":"'Product list (detail)'!E53","v":"Item"}]
[{"$f":"'Product list (detail)'!B54","v":"HE poloshirt (M) white mainstream"},{"$f":"'Product list (detail)'!C54","v":"HE рубашка поло белая обычная (M)"},{"$f":"'Product list (detail)'!A54","v":"90121055"},{"$f":"'Product list (detail)'!D54","v":10.595000000000001},{"$f":"'Product list (detail)'!E54","v":"Item"}]
[{"$f":"'Product list (detail)'!B55","v":"HE poloshirt (XL) green mainstream"},{"$f":"'Product list (detail)'!C55","v":"HE рубашка поло зеленая обычная (XL)"},{"$f":"'Product list (detail)'!A55","v":"90121061"},{"$f":"'Product list (detail)'!D55","v":10.595000000000001},{"$f":"'Product list (detail)'!E55","v":"Item"}]
[{"$f":"'Product list (detail)'!B56","v":"HE poloshirt (XL) white mainstream"},{"$f":"'Product list (detail)'!C56","v":"HE рубашка поло белая обычная (XL)"},{"$f":"'Product list (detail)'!A56","v":"90121057"},{"$f":"'Product list (detail)'!D56","v":10.595000000000001},{"$f":"'Product list (detail)'!E56","v":"Item"}]
[{"$f":"'Product list (detail)'!B57","v":"HE poloshirt (XXL) green mainstream"},{"$f":"'Product list (detail)'!C57","v":"HE рубашка поло зеленая обычная (XXL)"},{"$f":"'Product list (detail)'!A57","v":"90121062"},{"$f":"'Product list (detail)'!D57","v":10.595000000000001},{"$f":"'Product list (detail)'!E57","v":"Item"}]
[{"$f":"'Product list (detail)'!B58","v":"HE poloshirt (XXL) white mainstream"},{"$f":"'Product list (detail)'!C58","v":"HE рубашка поло белая обычная (XXL)"},{"$f":"'Product list (detail)'!A58","v":"90121058"},{"$f":"'Product list (detail)'!D58","v":10.595000000000001},{"$f":"'Product list (detail)'!E58","v":"Item"}]
[{"$f":"'Product list (detail)'!B59","v":"HE poloshirt green (L)"},{"$f":"'Product list (detail)'!C59","v":"HE рубашка поло зеленая (L)"},{"$f":"'Product list (detail)'!A59","v":"94309027"},{"$f":"'Product list (detail)'!D59","v":9.1390000000000011},{"$f":"'Product list (detail)'!E59","v":"Item"}]
[{"$f":"'Product list (detail)'!B60","v":"HE poloshirt green (M)"},{"$f":"'Product list (detail)'!C60","v":"HE рубашка поло зеленая (M)"},{"$f":"'Product list (detail)'!A60","v":"94309026"},{"$f":"'Product list (detail)'!D60","v":9.1390000000000011},{"$f":"'Product list (detail)'!E60","v":"Item"}]
[{"$f":"'Product list (detail)'!B61","v":"HE poloshirt green (XXL)"},{"$f":"'Product list (detail)'!C61","v":"HE рубашка поло зеленая (XXL)"},{"$f":"'Product list (detail)'!A61","v":"94309029"},{"$f":"'Product list (detail)'!D61","v":13.273000000000001},{"$f":"'Product list (detail)'!E61","v":"Item"}]
[{"$f":"'Product list (detail)'!B62","v":"HE poloshirt white (L)"},{"$f":"'Product list (detail)'!C62","v":"HE рубашка поло белая (L)"},{"$f":"'Product list (detail)'!A62","v":"94309017"},{"$f":"'Product list (detail)'!D62","v":9.1390000000000011},{"$f":"'Product list (detail)'!E62","v":"Item"}]
[{"$f":"'Product list (detail)'!B63","v":"HE poloshirt white (M)"},{"$f":"'Product list (detail)'!C63","v":"HE рубашка поло белая (M)"},{"$f":"'Product list (detail)'!A63","v":"94309018"},{"$f":"'Product list (detail)'!D63","v":9.1390000000000011},{"$f":"'Product list (detail)'!E63","v":"Item"}]
[{"$f":"'Product list (detail)'!B64","v":"HE poloshirt white (XXL)"},{"$f":"'Product list (detail)'!C64","v":"HE рубашка поло белая (XXL)"},{"$f":"'Product list (detail)'!A64","v":"94309019"},{"$f":"'Product list (detail)'!D64","v":9.1390000000000011},{"$f":"'Product list (detail)'!E64","v":"Item"}]
[{"$f":"'Product list (detail)'!B65","v":"HE poster 'bottle'"},{"$f":"'Product list (detail)'!C65","v":"HE плакат \"бутылка\""},{"$f":"'Product list (detail)'!A65","v":"88001374"},{"$f":"'Product list (detail)'!D65","v":0.88400000000000012},{"$f":"'Product list (detail)'!E65","v":"Item"}]
[{"$f":"'Product list (detail)'!B66","v":"HE poster 'pouring shot'"},{"$f":"'Product list (detail)'!C66","v":"HE плакат \"наполняющийся бокал\""},{"$f":"'Product list (detail)'!A66","v":"94294322"},{"$f":"'Product list (detail)'!D66","v":0.88400000000000012},{"$f":"'Product list (detail)'!E66","v":"Item"}]
[{"$f":"'Product list (detail)'!B67","v":"HE push/pull sign"},{"$f":"'Product list (detail)'!C67","v":"HE тяни/толкай"},{"$f":"'Product list (detail)'!A67","v":"94296014"},{"$f":"'Product list (detail)'!D67","v":2.9510000000000001},{"$f":"'Product list (detail)'!E67","v":"Item"}]
[{"$f":"'Product list (detail)'!B68","v":"HE Refrigerator Branding 220V big"},{"$f":"'Product list (detail)'!C68","v":"HE холодильник большой 220 в"},{"$f":"'Product list (detail)'!A68","v":"94990275"},{"$f":"'Product list (detail)'!D68","v":526.5},{"$f":"'Product list (detail)'!E68","v":"Item"}]
[{"$f":"'Product list (detail)'!B69","v":"HE Refrigerator Branding 220V small"},{"$f":"'Product list (detail)'!C69","v":"HE холодильник малый 220 в"},{"$f":"'Product list (detail)'!A69","v":"94990277"},{"$f":"'Product list (detail)'!D69","v":390},{"$f":"'Product list (detail)'!E69","v":"Item"}]
[{"$f":"'Product list (detail)'!B70","v":"HE shopping bag big"},{"$f":"'Product list (detail)'!C70","v":"HE пакет полиэтиленовый большой"},{"$f":"'Product list (detail)'!A70","v":"94292837"},{"$f":"'Product list (detail)'!D70","v":0.14300000000000002},{"$f":"'Product list (detail)'!E70","v":"Item"}]
[{"$f":"'Product list (detail)'!B71","v":"HE Smart Beermat (pack of 10 rolls)"},{"$f":"'Product list (detail)'!C71","v":"HE подстаканники \"логические\" (10 рулонов упаковке)"},{"$f":"'Product list (detail)'!A71","v":"88000310"},{"$f":"'Product list (detail)'!D71","v":9.9060000000000006},{"$f":"'Product list (detail)'!E71","v":"Pack"}]
[{"$f":"'Product list (detail)'!B72","v":"HE sportsbag"},{"$f":"'Product list (detail)'!C72","v":"HE сумка спортивная"},{"$f":"'Product list (detail)'!A72","v":"94302806"},{"$f":"'Product list (detail)'!D72","v":9.6980000000000004},{"$f":"'Product list (detail)'!E72","v":"Item"}]
[{"$f":"'Product list (detail)'!B73","v":"HE sportswallet"},{"$f":"'Product list (detail)'!C73","v":"HE кошелек спортивный"},{"$f":"'Product list (detail)'!A73","v":"94301123"},{"$f":"'Product list (detail)'!D73","v":0.8580000000000001},{"$f":"'Product list (detail)'!E73","v":"Item"}]
[{"$f":"'Product list (detail)'!B74","v":"HE standard glass 1 pint 6 pcs"},{"$f":"'Product list (detail)'!C74","v":"HE стакан стандартный 0.5 л, 6 шт."},{"$f":"'Product list (detail)'!A74","v":"94304486"},{"$f":"'Product list (detail)'!D74","v":6.1879999999999997},{"$f":"'Product list (detail)'!E74","v":"Box"}]
[{"$f":"'Product list (detail)'!B75","v":"HE standard glass 1/2 pint 12 pcs"},{"$f":"'Product list (detail)'!C75","v":"HE стакан стандартный 0.25 л, 12 шт."},{"$f":"'Product list (detail)'!A75","v":"88001324"},{"$f":"'Product list (detail)'!D75","v":4.7190000000000003},{"$f":"'Product list (detail)'!E75","v":"Box"}]
[{"$f":"'Product list (detail)'!B76","v":"HE sticker emblem 10 cm."},{"$f":"'Product list (detail)'!C76","v":"HE наклейка диам. 10 см"},{"$f":"'Product list (detail)'!A76","v":"94308910"},{"$f":"'Product list (detail)'!D76","v":0.20800000000000002},{"$f":"'Product list (detail)'!E76","v":"Item"}]
[{"$f":"'Product list (detail)'!B77","v":"HE sticker emblem 30 cm."},{"$f":"'Product list (detail)'!C77","v":"HE наклейка диам. 30 см"},{"$f":"'Product list (detail)'!A77","v":"88001349"},{"$f":"'Product list (detail)'!D77","v":0.624},{"$f":"'Product list (detail)'!E77","v":"Item"}]
[{"$f":"'Product list (detail)'!B78","v":"HE sticker emblem 60 cm."},{"$f":"'Product list (detail)'!C78","v":"HE наклейка диам. 60 см"},{"$f":"'Product list (detail)'!A78","v":"88001350"},{"$f":"'Product list (detail)'!D78","v":2.9510000000000001},{"$f":"'Product list (detail)'!E78","v":"Item"}]
[{"$f":"'Product list (detail)'!B79","v":"HE sunglasses "},{"$f":"'Product list (detail)'!C79","v":"HE очки солнечные"},{"$f":"'Product list (detail)'!A79","v":"88001351"},{"$f":"'Product list (detail)'!D79","v":1.7030000000000001},{"$f":"'Product list (detail)'!E79","v":"Item"}]
[{"$f":"'Product list (detail)'!B80","v":"HE Sunumbrella + underpole 104 cm"},{"$f":"'Product list (detail)'!C80","v":"HE зонт + доп. опорный шест 104 см"},{"$f":"'Product list (detail)'!A80","v":"94306614"},{"$f":"'Product list (detail)'!D80","v":15.6},{"$f":"'Product list (detail)'!E80","v":"Item"}]
[{"$f":"'Product list (detail)'!B81","v":"HE tinplate \"bottle P.Q.\""},{"$f":"'Product list (detail)'!C81","v":"HE настенная вывеска \"бутылка\""},{"$f":"'Product list (detail)'!A81","v":"94290860"},{"$f":"'Product list (detail)'!D81","v":11.765000000000001},{"$f":"'Product list (detail)'!E81","v":"Item"}]
[{"$f":"'Product list (detail)'!B82","v":"HE T-shirt (L) green ladies Tiny T"},{"$f":"'Product list (detail)'!C82","v":"HE футболка (L) зеленая женск. Tiny T"},{"$f":"'Product list (detail)'!A82","v":"94279296"},{"$f":"'Product list (detail)'!D82","v":9.6980000000000004},{"$f":"'Product list (detail)'!E82","v":"Item"}]
[{"$f":"'Product list (detail)'!B83","v":"HE T-shirt (L) ladies t'fit 'active'"},{"$f":"'Product list (detail)'!C83","v":"HE футболка (L) женск. t 'fit 'active'"},{"$f":"'Product list (detail)'!A83","v":"94909122"},{"$f":"'Product list (detail)'!D83","v":9.0220000000000002},{"$f":"'Product list (detail)'!E83","v":"Item"}]
[{"$f":"'Product list (detail)'!B84","v":"HE T-shirt (L) white"},{"$f":"'Product list (detail)'!C84","v":"HE футболка (L) белая"},{"$f":"'Product list (detail)'!A84","v":"94279092"},{"$f":"'Product list (detail)'!D84","v":8.2029999999999994},{"$f":"'Product list (detail)'!E84","v":"Item"}]
[{"$f":"'Product list (detail)'!B85","v":"HE T-shirt (M) green ladies Tiny T"},{"$f":"'Product list (detail)'!C85","v":"HE футболка (M) зеленая женск. Tiny T"},{"$f":"'Product list (detail)'!A85","v":"94279295"},{"$f":"'Product list (detail)'!D85","v":9.6980000000000004},{"$f":"'Product list (detail)'!E85","v":"Item"}]
[{"$f":"'Product list (detail)'!B86","v":"HE T-shirt (M) ladies t'fit 'active'"},{"$f":"'Product list (detail)'!C86","v":"HE футболка (M) женск. t 'fit 'active'"},{"$f":"'Product list (detail)'!A86","v":"94909121"},{"$f":"'Product list (detail)'!D86","v":9.0220000000000002},{"$f":"'Product list (detail)'!E86","v":"Item"}]
[{"$f":"'Product list (detail)'!B87","v":"HE T-shirt (M) white"},{"$f":"'Product list (detail)'!C87","v":"HE футболка (M) белая"},{"$f":"'Product list (detail)'!A87","v":"94279091"},{"$f":"'Product list (detail)'!D87","v":8.2029999999999994},{"$f":"'Product list (detail)'!E87","v":"Item"}]
[{"$f":"'Product list (detail)'!B88","v":"HE T-shirt (S) green ladies Tiny T"},{"$f":"'Product list (detail)'!C88","v":"HE футболка (S) зеленая женск. Tiny T"},{"$f":"'Product list (detail)'!A88","v":"94279294"},{"$f":"'Product list (detail)'!D88","v":9.6980000000000004},{"$f":"'Product list (detail)'!E88","v":"Item"}]
[{"$f":"'Product list (detail)'!B89","v":"HE T-shirt (S) ladies t'fit 'active'"},{"$f":"'Product list (detail)'!C89","v":"HE футболка (S) женск. t 'fit 'active'"},{"$f":"'Product list (detail)'!A89","v":"94909120"},{"$f":"'Product list (detail)'!D89","v":9.0220000000000002},{"$f":"'Product list (detail)'!E89","v":"Item"}]
[{"$f":"'Product list (detail)'!B90","v":"HE T-shirt (XL) white"},{"$f":"'Product list (detail)'!C90","v":"HE футболка (XL) белая"},{"$f":"'Product list (detail)'!A90","v":"94279093"},{"$f":"'Product list (detail)'!D90","v":8.2029999999999994},{"$f":"'Product list (detail)'!E90","v":"Item"}]
[{"$f":"'Product list (detail)'!B91","v":"HE T-shirt green M"},{"$f":"'Product list (detail)'!C91","v":"HE футболка (M) зеленая"},{"$f":"'Product list (detail)'!A91","v":"94309291"},{"$f":"'Product list (detail)'!D91","v":4.6929999999999996},{"$f":"'Product list (detail)'!E91","v":"Item"}]
[{"$f":"'Product list (detail)'!B92","v":"HE T-shirt green L"},{"$f":"'Product list (detail)'!C92","v":"HE футболка (L) зеленая"},{"$f":"'Product list (detail)'!A92","v":"94309292"},{"$f":"'Product list (detail)'!D92","v":4.6929999999999996},{"$f":"'Product list (detail)'!E92","v":"Item"}]
[{"$f":"'Product list (detail)'!B93","v":"HE T-shirt green XL"},{"$f":"'Product list (detail)'!C93","v":"HE футболка (XL) зеленая"},{"$f":"'Product list (detail)'!A93","v":"94309293"},{"$f":"'Product list (detail)'!D93","v":4.6929999999999996},{"$f":"'Product list (detail)'!E93","v":"Item"}]
[{"$f":"'Product list (detail)'!B94","v":"HE T-shirt green XXL"},{"$f":"'Product list (detail)'!C94","v":"HE футболка (XXL) зеленая"},{"$f":"'Product list (detail)'!A94","v":"94309294"},{"$f":"'Product list (detail)'!D94","v":4.6929999999999996},{"$f":"'Product list (detail)'!E94","v":"Item"}]
[{"$f":"'Product list (detail)'!B95","v":"HE t-shirt white l"},{"$f":"'Product list (detail)'!C95","v":"HE футболка (L) белая"},{"$f":"'Product list (detail)'!A95","v":"94309092"},{"$f":"'Product list (detail)'!D95","v":4.0949999999999998},{"$f":"'Product list (detail)'!E95","v":"Item"}]
[{"$f":"'Product list (detail)'!B96","v":"HE t-shirt white M"},{"$f":"'Product list (detail)'!C96","v":"HE футболка (M) белая"},{"$f":"'Product list (detail)'!A96","v":"94309091"},{"$f":"'Product list (detail)'!D96","v":4.0949999999999998},{"$f":"'Product list (detail)'!E96","v":"Item"}]
[{"$f":"'Product list (detail)'!B97","v":"HE t-shirt white XL"},{"$f":"'Product list (detail)'!C97","v":"HE футболка (XL) белая"},{"$f":"'Product list (detail)'!A97","v":"94309093"},{"$f":"'Product list (detail)'!D97","v":4.0949999999999998},{"$f":"'Product list (detail)'!E97","v":"Item"}]
[{"$f":"'Product list (detail)'!B98","v":"HE t-shirt white XXL"},{"$f":"'Product list (detail)'!C98","v":"HE футболка (XXL) белая"},{"$f":"'Product list (detail)'!A98","v":"94309094"},{"$f":"'Product list (detail)'!D98","v":4.0949999999999998},{"$f":"'Product list (detail)'!E98","v":"Item"}]
[{"$f":"'Product list (detail)'!B99","v":"HE umbrella \"RAIN\""},{"$f":"'Product list (detail)'!C99","v":"HE зонт \"дождь\""},{"$f":"'Product list (detail)'!A99","v":"94304520"},{"$f":"'Product list (detail)'!D99","v":9.5939999999999994},{"$f":"'Product list (detail)'!E99","v":"Item"}]
[{"$f":"'Product list (detail)'!B100","v":"HE unibody 'star Heineken'"},{"$f":"'Product list (detail)'!C100","v":"HE световой знак \"юнибоди\""},{"$f":"'Product list (detail)'!A100","v":"94305749"},{"$f":"'Product list (detail)'!D100","v":60.762000000000008},{"$f":"'Product list (detail)'!E100","v":"Item"}]
[{"$f":"'Product list (detail)'!B101","v":"HE Waiter's notepad (100 pcs.)"},{"$f":"'Product list (detail)'!C101","v":"HE блокнот официанта (100 шт.)"},{"$f":"'Product list (detail)'!A101","v":"94305320"},{"$f":"'Product list (detail)'!D101","v":12.35},{"$f":"'Product list (detail)'!E101","v":"Pack"}]
[{"$f":"'Product list (detail)'!B102","v":"HE waiterstray \"Beer\""},{"$f":"'Product list (detail)'!C102","v":"HE поднос официанта \"пиво\""},{"$f":"'Product list (detail)'!A102","v":"88001320"},{"$f":"'Product list (detail)'!D102","v":2.7170000000000001},{"$f":"'Product list (detail)'!E102","v":"Item"}]
[{"$f":"'Product list (detail)'!B103","v":"HE watch \"Chronograph\""},{"$f":"'Product list (detail)'!C103","v":"HE часы \"хронограф\""},{"$f":"'Product list (detail)'!A103","v":"94297521"},{"$f":"'Product list (detail)'!D103","v":53.716000000000001},{"$f":"'Product list (detail)'!E103","v":"Item"}]
[{"$f":"'Product list (detail)'!B104","v":"HE watch luxury lady's version"},{"$f":"'Product list (detail)'!C104","v":"HE часы престижные женская версия"},{"$f":"'Product list (detail)'!A104","v":"94307524"},{"$f":"'Product list (detail)'!D104","v":23.568999999999999},{"$f":"'Product list (detail)'!E104","v":"Item"}]
[{"$f":"'Product list (detail)'!B105","v":"HE watch luxury men's version"},{"$f":"'Product list (detail)'!C105","v":"HE часы престижные мужская версия"},{"$f":"'Product list (detail)'!A105","v":"94307522"},{"$f":"'Product list (detail)'!D105","v":23.568999999999999},{"$f":"'Product list (detail)'!E105","v":"Item"}]
[{"$f":"'Product list (detail)'!B106","v":"HE wobbler 'crowncork' (10 pcs.)"},{"$f":"'Product list (detail)'!C106","v":"HE вобблер \"крышка\" (10 шт.)"},{"$f":"'Product list (detail)'!A106","v":"94294020"},{"$f":"'Product list (detail)'!D106","v":4.42},{"$f":"'Product list (detail)'!E106","v":"Box"}]

{"sheet":"Product Detail","index":1,"n_rows":18,"n_cols":3,"rows_kept":18,"cut":false,"hidden":false,"merged":[[1,3,18,3],[1,4,18,4],[1,1,18,1]]}
[]
["Наименование изделия\nMaterial description",null,{"$f":"VLOOKUP($C$3,'Product list (detail)'!A:Q,3,FALSE) & CHAR(10) & VLOOKUP($C$3,'Product list (detail)'!A:Q,2,FALSE)","v":"HE стакан пластиковый 0.25 л\nHE 25cl Plastic beercup (25 x 75 units in a box)"}]
[{"$f":"'Product list (detail)'!A1","v":"Код\nCode"},null,"94304451"]
[{"$f":"'Product list (detail)'!D1","v":"Цена за единицу\nPrice per unit (EURO):"},null,{"$f":"VLOOKUP($C$3,'Product list (detail)'!A:Q,MATCH($A4,'Product list (detail)'!$1:$1,FALSE),FALSE)","v":32.864000000000004}]
[{"$f":"'Product list (detail)'!E1","v":"Товарная единица\nPackaging unit:"},null,{"$f":"VLOOKUP($C$3,'Product list (detail)'!A:Q,MATCH($A5,'Product list (detail)'!$1:$1,FALSE),FALSE)","v":"Box"}]
[{"$f":"'Product list (detail)'!F1","v":"Страна производства\nCountry of origin:"},null,{"$f":"VLOOKUP($C$3,'Product list (detail)'!A:Q,MATCH($A6,'Product list (detail)'!$1:$1,FALSE),FALSE)","v":"Netherlands"}]
[{"$f":"'Product list (detail)'!G1","v":"Статус изделия\nProduct status:"},null,{"$f":"VLOOKUP($C$3,'Product list (detail)'!A:Q,MATCH($A7,'Product list (detail)'!$1:$1,FALSE),FALSE)","v":"Current "}]
[{"$f":"'Product list (detail)'!H1","v":"Время выполнения заказа\nLead time:"},null,{"$f":"VLOOKUP($C$3,'Product list (detail)'!A:Q,MATCH($A8,'Product list (detail)'!$1:$1,FALSE),FALSE)","v":89}]
["\n"]
[{"$f":"'Product list (detail)'!I1","v":"Категория\nCategory:"},null,{"$f":"VLOOKUP($C$3,'Product list (detail)'!A:Q,MATCH($A10,'Product list (detail)'!$1:$1,FALSE),FALSE)","v":"On Trade"}]
[{"$f":"'Product list (detail)'!J1","v":"Сегмент\nSegment"},null,{"$f":"VLOOKUP($C$3,'Product list (detail)'!A:Q,MATCH($A11,'Product list (detail)'!$1:$1,FALSE),FALSE)","v":"beer-related"}]
[{"$f":"'Product list (detail)'!K1","v":"Использовать изделие\nProduct Use:"},null,{"$f":"VLOOKUP($C$3,'Product list (detail)'!A:Q,MATCH($A12,'Product list (detail)'!$1:$1,FALSE),FALSE)","v":"Visibility indoor"}]
[{"$f":"'Product list (detail)'!L1","v":"Минимальный заказ\nMin. order quantity:"},null,{"$f":"VLOOKUP($C$3,'Product list (detail)'!A:Q,MATCH($A13,'Product list (detail)'!$1:$1,FALSE),FALSE)","v":1}]
["\n"]
[{"$f":"'Product list (detail)'!M1","v":"Максимальный заказ\nMax. order quantity:"},null,{"$f":"VLOOKUP($C$3,'Product list (detail)'!A:Q,MATCH($A15,'Product list (detail)'!$1:$1,FALSE),FALSE)","v":30}]
[{"$f":"'Product list (detail)'!N1","v":"Размеры изделия\nMaterial dimensions:"},null,{"$f":"VLOOKUP($C$3,'Product list (detail)'!A:V,MATCH($A16,'Product list (detail)'!$1:$1,FALSE),FALSE)","v":"40x40x50"}]
[{"$f":"'Product list (detail)'!P1","v":"Вес нетто\nMaterial net weight:"},null,{"$f":"VLOOKUP($C$3,'Product list (detail)'!A:Q,MATCH($A17,'Product list (detail)'!$1:$1,FALSE),FALSE)","v":10.15}]
[{"$f":"'Product list (detail)'!Q1","v":"Вес брутто\nMaterial gross weight:"},null,{"$f":"VLOOKUP($C$3,'Product list (detail)'!A:Q,MATCH($A18,'Product list (detail)'!$1:$1,FALSE),FALSE)","v":10.15}]

{"sheet":"Product list (detail)","index":2,"n_rows":106,"n_cols":17,"rows_kept":106,"cut":false,"hidden":true,"merged":[]}
["Код\nCode","Наименование изделия\nMaterial description: (ENG)","Наименование изделия\nMaterial description: (RU)","Цена за единицу\nPrice per unit (EURO):","Товарная единица\nPackaging unit:","Страна производства\nCountry of origin:","Статус изделия\nProduct status:","Время выполнения заказа\nLead time:","Категория\nCategory:","Сегмент\nSegment","Использовать изделие\nProduct Use:","Минимальный заказ\nMin. order quantity:","Максимальный заказ\nMax. order quantity:","Размеры изделия\nMaterial dimensions:","Объем изделия\nMaterial volume:","Вес нетто\nMaterial net weight:","Вес брутто\nMaterial gross weight:"]
["94304451","HE 25cl Plastic beercup (25 x 75 units in a box)","HE стакан пластиковый 0.25 л",32.864000000000004,"Box","Netherlands","Current ",89,"On Trade","beer-related","Visibility indoor",1,30,"40x40x50","80000 CCM",10.15,10.15]
["94300585","HE ashtray 12 cm (small)","HE пепельница малая 12 см",1.1440000000000001,"Item","Italy","Current ",30,"On Trade","non beer-related","Visibility indoor",1,500,"n/a","0 CCM",0.108,0.108]
["94300575","HE ashtray 18 cm (large)","HE пепельница большая 18 см",2.444,"Item","Italy","Current ",50,"On Trade","non beer-related","Visibility indoor",1,1050,"50x36x35","6300 CCM",0.24,0.24]
["94980035","HE ashtray glass (6pcs)","HE пепельница стеклянная 6 шт.",5.7330000000000005,"Box","Netherlands","phased out",65,"On Trade","non beer-related","Visibility indoor",1,260,"n/a",null,1.56,1.56]
["94300555","HE ashtray windproof","HE пепельница с крышкой большая",3.835,"Item","Italy","Current ",50,"On Trade","non beer-related","Visibility indoor",1,200,"39x39x23","34983 CCM",0.42599999999999999,0.42599999999999999]
["94300550","HE ashtray windproof small","HE пепельница с крышкой малая",2.8080000000000003,"Item","Italy","Current ",50,"On Trade","non beer-related","Visibility indoor",1,320,"38x26x23","22724 CCM",0.21,0.21]
["94302805","HE backpack","HE рюкзак",7.657,"Item","China","Current ",105,null,"non beer-related",null,1,180,"n/a","1 CCM",0.35,0.375]
["94902806","HE backpack 'active'","HE рюкзак \"Актив\"",11.648000000000001,"Item","China","Current ",105,"Off Trade","give away","Presents",1,180,"n/a","1 CCM",0.7,0.7]
["88001376","HE ballpoint","HE ручка шариковая",0.47,"Item","China","Current ",40,null,"give away",null,1,5000,"32x16x14","7168 CCM",1.4999999999999999E-2,1.4999999999999999E-2]
["94300735","HE ballpoint \"gimmick\"","HE ручка \"Паркер\"",3.718,"Item","United Kingdom","Current ",65,"Off Trade","give away","Premiums",1,600,"13x0.8x4","42 CCM",1.4E-2,1.4E-2]
["94308220","HE banner 60*2500cm (roll)","HE транспарант 0.6 х 25.0 м (рулон)",66.066000000000003,"Item","Netherlands","Current ",35,"Off Trade","non beer-related","Visibility indoor",1,7,"62x17x17","17918 CCM",2.2000000000000002,2.2000000000000002]
["94308221","HE banner 120*5000cm (roll)","HE транспарант 1.2 х 50.0 м (рулон)",297.32300000000004,"Item","Netherlands","Current ",35,"Off Trade","non beer-related","Visibility indoor",1,5,"127x27x","1 CCM",9,10]
["94300811","HE bartenders apron","HE фартук бармена",8.229000000000001,"Item","China","Current ",145,"On Trade","non beer-related","Visibility indoor",1,450,"n/a","1 CCM",0.24,0.24]
["94300713","HE bartowel \"Star Heineken\"","HE полотенце барное ",0.97499999999999998,"Item","Portugal","Current ",30,"On Trade","beer-related","Visibility indoor",1,6000,"n/a","1 CCM",6.5000000000000002E-2,6.5000000000000002E-2]
["94300835","HE baseballcap green \"Star\"","HE кепка зеленая \"звезда\"",1.3520000000000001,"Item","China","Current ",115,null,"give away",null,1,6500,"49x19x17","15827 CCM",6.8000000000000005E-2,7.0000000000000007E-2]
["88000114","HE Beermatholder One Meaning","HE держатель подстаканников",1.573,"Item","China","Current ",80,"On Trade","beer-related","Visibility indoor",1,1000,"11x11x4","484 CCM",0.15,0.15]
["94300620","HE beermats PQ roll of 85 pcs","HE подстаканники (рулон 85 шт.)",1.274,"Roll","Germany","Current ",33,"On Trade","beer-related","Visibility indoor",1,1440,"20x10.7x10.7","2290 CCM",0.85,0.85]
["94300600","HE beermats waiter's tray (15 pcs)","HE подстаканники для подноса (15 шт.)",2.8080000000000003,"Roll","Germany","Current ",33,"On Trade","beer-related","Visibility indoor",1,90,"33x33x15","16335 CCM",1.01,1.01]
["94291061","HE Beermug 0,5l \"delft\"green","HE кружка керамическая зеленая 0.5 л",6.0449999999999999,"Item","Netherlands","Current ",26,"On Trade","give away",null,1,125,"14x9x14","1764 CCM",0.38,0.436]
["88001346","HE bottle opener luxury","HE открывашка престижная",1.95,"Item","Netherlands","Current ",50,"On Trade","beer-related","Premiums",1,250,"n/a","1 CCM",7.0000000000000007E-2,7.0000000000000007E-2]
["94296445","HE bottle opener spring rule","HE открывашка пружинная",2.8080000000000003,"Item","Germany","Current ",65,"On Trade","beer-related","Visibility indoor",1,500,"30x22x11","7260 CCM",9.5000000000000001E-2,9.8000000000000004E-2]
["88001345","HE bottle opener standard","HE открывашка стандартная",0.11699999999999999,"Item","China","Current ",65,"On Trade","beer-related","Visibility indoor",1,2500,"13x13x6","1014 CCM",2.5000000000000001E-2,2.5000000000000001E-2]
["94302825","HE bow bag","HE дорожная сумка",8.8529999999999998,"Item","China","Current ",105,"Off Trade","non beer-related","Presents",1,220,"n/a","1 CCM",0.125,0.125]
["94304612","HE bunting","HE флажки \"волчатник\"",14.196,"Item","Ireland","phased out",75,"Off Trade","non beer-related","Visibility indoor",1,150,"n/a","1 CCM",0.2,0.2]
["94300950","HE cd-crate (green)","HE коробка для CD ",1.911,"Item","Netherlands","Current ",65,"Off Trade","non beer-related","Premiums",1,600,"20x15x12","3600 CCM",0.25,0.25]
["94306510","HE bottle opener countertop","HE отерывашка стационарная",29.471000000000004,"Item",null,null,50,null,"beer-related"]
["94296491","HE Bottle opener crowncork","HE открывашка \"пробка\"",1.0270000000000001,"Item",null,null,65,null,"beer-related"]
["90122036","HE dress (36) trendline","HE платье 36 размер",20.917000000000002,"Item",null,null,95,null,"non beer-related"]
["90122038","HE dress (38) trendline","HE платье 38 размер",20.917000000000002,"Item",null,null,95,null,"non beer-related"]
["90122042","HE dress (42) trendline","HE платье 42 размер",20.917000000000002,"Item",null,null,95,null,"non beer-related"]
["94302820","HE executive bag","HE портфель рабочий",9.5810000000000013,"Item","China","phased out",105,"Off Trade","non beer-related","Presents",1,170,"n/a","1 CCM",0.7,0.75]
["88001377","HE fisherman's hat","HE шапка рыболова",2.6260000000000003,"Item","China","Current ",95,"Off Trade","non beer-related","Premiums",1,500,"64x32x12","24576 CCM",7.4999999999999997E-2,7.8E-2]
["94309513","HE flag 100x150 cm","HE флаг 100 х 150 см",5.4859999999999998,"Item","Netherlands","Current ",35,"Off Trade","non beer-related","Visibility outdoor",1,120,"n/a","1 CCM",0.18,0.19]
["94309516","HE flag 150x225 cm export","HE флаг 150 х 225 см",16.224,"Item","Netherlands","phased out",35,"Off Trade","non beer-related","Visibility outdoor",1,35,"n/a","1 CCM",0.47,0.47]
["94309522","HE flag 200x300 cm export","HE флаг 200 х 300 см",23.01,"Item","Netherlands","phased out",35,"Off Trade","non beer-related","Visibility outdoor",1,11,"n/a","1 CCM",0.67,0.67]
["88001347","HE floatable keyring","HE брелок плавающий",0.50700000000000001,"Item","Netherlands","Current ",65,"Off Trade","non beer-related","Premiums",1,2500,"n/a","1 CCM",0.01,0.01]
["88001344","HE Glasses superprestige 30cl 6pcs","HE фужер \"супер престиж\" 30 мл 6 шт.",8.4890000000000008,"Box","Germany","Current ",89,"On Trade","beer-related","Visibility indoor",1,190,"23x15.5x23.5","8378 CCM",1.48,1.48]
["88001313","HE ice bucket (green)","HE ведро для льда (зеленое)",5.109,"Item","Malaysia","Current ",85,"On Trade","beer-related","Presents",1,700,"46x30x58","80040 CCM",0.7,0.7]
["94305400","HE ill.outdoorsign 78cm 220v","HE световой знак наружный 220 в",175.20100000000002,"Item",null,null,45,null,"non beer-related"]
["88001339","HE Lighter One Meaning","HE зажигалка",1.274,"Item",null,null,65,null,"give away"]
["88000260","HE Lighter ZIPPO matchroom","HE зажигалка \"ZIPPO\" ",15.638999999999999,"Item",null,null,65,null,"give away"]
["94297065","HE mirror \"Customized\"","HE зеркало ",37.609000000000002,"Item",null,null,21,null,"non beer-related"]
["94298420","HE necktie \"classic\"","HE галстук \"классик\"",21.891999999999999,"Item","Netherlands","Current ",65,null,"non beer-related","Presents",1,50,"n/a","1 CCM",0.05,0.06]
["94298421","HE necktie \"modern\"","HE галстук \"модерн\"",17.783999999999999,"Item","Netherlands","Current ",65,null,"non beer-related","Presents",1,50,"n/a","1 CCM",0.05,0.06]
["88001297","HE notepad","HE блокнот",3.3929999999999998,"Item","Netherlands","Current ",33,"On Trade","non beer-related","Visibility indoor",1,250,"42x33x12","16632 CCM",0.55000000000000004,0.55000000000000004]
["94296004","HE open/closed sign","HE открыто/закрыто",2.9510000000000001,"Item","Netherlands","phased out",33,"Off Trade","non beer-related","Visibility indoor",1,50,"25x25x0.2","125 CCM",0.13,0.13]
["94300733","HE Pen set","HE набор ручек",11.362,"Item","Netherlands","Current ",65,null,"non beer-related","Presents",1,1000,"n/a","1 CCM",0.17,0.18]
["88001342","HE playing cards (52 pcs)","HE карты игральные (52 шт.)",0.58499999999999996,"Item","Belgium","Current ",47,"Off Trade","non beer-related","Premiums",1,1250,"20x9x5","900 CCM",0.09,0.09]
["94298253","HE playing cards in min beercarton","HE карты игральные в коробке",2.0020000000000002,"Item","Belgium","Current ",68,"Off Trade","non beer-related","Premiums",1,250,"38x32x245","297920 CCM",0.2,0.2]
["90121060","HE poloshirt (L) green mainstream","HE рубашка поло зеленая обычная (L)",10.595000000000001,"Item","Russia","Current ",100,null,"non beer-related",null,1,135,"n/a","1 CCM",0.36,0.36]
["90121056","HE poloshirt (L) white mainstream","HE рубашка поло белая обычная (L)",10.595000000000001,"Item","Russia","Current ",100,null,"non beer-related",null,1,135,"n/a","2 CCM",0.36,0.36]
["90121059","HE poloshirt (M) green mainstream","HE рубашка поло зеленая обычная (M)",10.595000000000001,"Item","Russia","Current ",100,null,"non beer-related",null,1,135,"n/a","3 CCM",0.36,0.36]
["90121055","HE poloshirt (M) white mainstream","HE рубашка поло белая обычная (M)",10.595000000000001,"Item","Russia","Current ",100,null,"non beer-related",null,1,135,"n/a","4 CCM",0.36,0.36]
["90121061","HE poloshirt (XL) green mainstream","HE рубашка поло зеленая обычная (XL)",10.595000000000001,"Item","Russia","Current ",100,null,"non beer-related",null,1,135,"n/a","5 CCM",0.36,0.36]
["90121057","HE poloshirt (XL) white mainstream","HE рубашка поло белая обычная (XL)",10.595000000000001,"Item","Russia","Current ",100,null,"non beer-related",null,1,135,"n/a","6 CCM",0.36,0.36]
["90121062","HE poloshirt (XXL) green mainstream","HE рубашка поло зеленая обычная (XXL)",10.595000000000001,"Item","Russia","Current ",100,null,"non beer-related",null,1,135,"n/a","7 CCM",0.36,0.36]
["90121058","HE poloshirt (XXL) white mainstream","HE рубашка поло белая обычная (XXL)",10.595000000000001,"Item","Russia","Current ",100,null,"non beer-related",null,1,135,"n/a","8 CCM",0.36,0.36]
["94309027","HE poloshirt green (L)","HE рубашка поло зеленая (L)",9.1390000000000011,"Item",null,null,65,null,"non beer-related"]
["94309026","HE poloshirt green (M)","HE рубашка поло зеленая (M)",9.1390000000000011,"Item",null,null,65,null,"non beer-related"]
["94309029","HE poloshirt green (XXL)","HE рубашка поло зеленая (XXL)",13.273000000000001,"Item",null,null,65,null,"non beer-related"]
["94309017","HE poloshirt white (L)","HE рубашка поло белая (L)",9.1390000000000011,"Item",null,null,65,null,"non beer-related"]
["94309018","HE poloshirt white (M)","HE рубашка поло белая (M)",9.1390000000000011,"Item",null,null,65,null,"non beer-related"]
["94309019","HE poloshirt white (XXL)","HE рубашка поло белая (XXL)",9.1390000000000011,"Item",null,null,65,null,"non beer-related"]
["88001374","HE poster 'bottle'","HE плакат \"бутылка\"",0.88400000000000012,"Item",null,null,26,null,"non beer-related"]
["94294322","HE poster 'pouring shot'","HE плакат \"наполняющийся бокал\"",0.88400000000000012,"Item",null,null,33,null,"non beer-related"]
["94296014","HE push/pull sign","HE тяни/толкай",2.9510000000000001,"Item","Netherlands","Current ",40,"Off Trade","non beer-related","Visibility indoor",1,50,"25x25x0.2","125 CCM",7.0000000000000007E-2,7.0000000000000007E-2]
["94990275","HE Refrigerator Branding 220V big","HE холодильник большой 220 в",526.5,"Item",null,"Current ",95,"Off Trade","non beer-related","Visibility indoor",1,10,"60x60x207",null,90,92]
["94990277","HE Refrigerator Branding 220V small","HE холодильник малый 220 в",390,"Item",null,"Current ",95,"On Trade","non beer-related","Visibility indoor",1,10,"45x60x107",null,39,41]
["94292837","HE shopping bag big","HE пакет полиэтиленовый большой",0.14300000000000002,"Item","Netherlands","phased out",61,null,"non beer-related",null,1,6000,"46x34x15",null,1.2999999999999999E-2,1.2999999999999999E-2]
["88000310","HE Smart Beermat (pack of 10 rolls)","HE подстаканники \"логические\" (10 рулонов упаковке)",9.9060000000000006,"Pack","Germany","Current ",29,"On Trade","beer-related",null,1,648,"17x22x55",null,6.1,6.6]
["94302806","HE sportsbag","HE сумка спортивная",9.6980000000000004,"Item","China","Current ",105,null,"non beer-related",null,1,320,"n/a",null,0.83,0.83]
["94301123","HE sportswallet","HE кошелек спортивный",0.8580000000000001,"Item","China","Current ",115,"Off Trade","non beer-related","Premiums",1,2000,"n/a",null,0.02,0.02]
["94304486","HE standard glass 1 pint 6 pcs","HE стакан стандартный 0.5 л, 6 шт.",6.1879999999999997,"Box","France","Current ",89,"On Trade","beer-related","Visibility indoor",1,506,"26x18x17",null,2.63,2.63]
["88001324","HE standard glass 1/2 pint 12 pcs","HE стакан стандартный 0.25 л, 12 шт.",4.7190000000000003,"Box","France","Current ",89,"On Trade","beer-related","Visibility indoor",1,2200,"29x22x14",null,2,2]
["94308910","HE sticker emblem 10 cm.","HE наклейка диам. 10 см",0.20800000000000002,"Item","Netherlands","Current ",26,"Off Trade","non beer-related","Visibility indoor",1,350,"n/a",null,2E-3,2E-3]
["88001349","HE sticker emblem 30 cm.","HE наклейка диам. 30 см",0.624,"Item","Netherlands","Current ",26,"Off Trade","non beer-related","Visibility indoor",1,350,"n/a",null,2E-3,2E-3]
["88001350","HE sticker emblem 60 cm.","HE наклейка диам. 60 см",2.9510000000000001,"Item","Netherlands","Current ",26,"Off Trade","non beer-related","Visibility indoor",1,350,"n/a",null,2E-3,2E-3]
["88001351","HE sunglasses ","HE очки солнечные",1.7030000000000001,"Item","Taiwan","Current ",65,null,"non beer-related",null,1,500,"n/a",null,3.3000000000000002E-2,3.3000000000000002E-2]
["94306614","HE Sunumbrella + underpole 104 cm","HE зонт + доп. опорный шест 104 см",15.6,"Item","Russia","Current ",45,"On Trade","non beer-related","Visibility outdoor",1,100,"141x31x20",null,3.4,3.4]
["94290860","HE tinplate \"bottle P.Q.\"","HE настенная вывеска \"бутылка\"",11.765000000000001,"Item","Netherlands","Current ",65,"Off Trade","non beer-related","Visibility indoor",1,70,"65x22x4",null,3.34,3.34]
["94279296","HE T-shirt (L) green ladies Tiny T","HE футболка (L) зеленая женск. Tiny T",9.6980000000000004,"Item","Turkey","Current ",85,null,"non beer-related",null,1,40,"n/a",null,0.185,0.185]
["94909122","HE T-shirt (L) ladies t'fit 'active'","HE футболка (L) женск. t 'fit 'active'",9.0220000000000002,"Item","Hong Kong","Current ",125,"Off Trade","non beer-related","Visibility indoor",1,27,"n/a",null,0.13500000000000001,0.14499999999999999]
["94279092","HE T-shirt (L) white","HE футболка (L) белая",8.2029999999999994,"Item",null,null,85,null,"non beer-related"]
["94279295","HE T-shirt (M) green ladies Tiny T","HE футболка (M) зеленая женск. Tiny T",9.6980000000000004,"Item","Turkey","Current ",85,null,"non beer-related",null,1,40,"n/a",null,0.185,0.185]
["94909121","HE T-shirt (M) ladies t'fit 'active'","HE футболка (M) женск. t 'fit 'active'",9.0220000000000002,"Item","Hong Kong","Current ",125,"Off Trade","non beer-related","Visibility indoor",1,27,"n/a",null,0.13500000000000001,0.14499999999999999]
["94279091","HE T-shirt (M) white","HE футболка (M) белая",8.2029999999999994,"Item",null,null,85,null,"non beer-related"]
["94279294","HE T-shirt (S) green ladies Tiny T","HE футболка (S) зеленая женск. Tiny T",9.6980000000000004,"Item","Turkey","Current ",85,null,"non beer-related",null,1,40,"n/a",null,0.185,0.185]
["94909120","HE T-shirt (S) ladies t'fit 'active'","HE футболка (S) женск. t 'fit 'active'",9.0220000000000002,"Item","Hong Kong","Current ",125,"Off Trade","non beer-related","Visibility indoor",1,27,"n/a",null,0.13500000000000001,0.14499999999999999]
["94279093","HE T-shirt (XL) white","HE футболка (XL) белая",8.2029999999999994,"Item",null,null,85,null,"non beer-related"]
["94309291","HE T-shirt green M","HE футболка (M) зеленая",4.6929999999999996,"Item",null,"Current ",125,"Off Trade","non beer-related","Visibility indoor",1,125,"n/a",null,0.21,0.21]
["94309292","HE T-shirt green L","HE футболка (L) зеленая",4.6929999999999996,"Item",null,"Current ",125,"Off Trade","non beer-related","Visibility indoor",1,125,"n/a",null,0.21,0.21]
["94309293","HE T-shirt green XL","HE футболка (XL) зеленая",4.6929999999999996,"Item",null,"Current ",125,"Off Trade","non beer-related","Visibility indoor",1,125,"n/a",null,0.21,0.21]
["94309294","HE T-shirt green XXL","HE футболка (XXL) зеленая",4.6929999999999996,"Item",null,"Current ",125,"Off Trade","non beer-related","Visibility indoor",1,125,"n/a",null,0.21,0.21]
["94309092","HE t-shirt white l","HE футболка (L) белая",4.0949999999999998,"Item",null,"Current ",125,"Off Trade","non beer-related","Visibility indoor",1,125,"n/a",null,0.21,0.21]
["94309091","HE t-shirt white M","HE футболка (M) белая",4.0949999999999998,"Item",null,"Current ",125,"Off Trade","non beer-related","Visibility indoor",1,125,"n/a",null,0.21,0.21]
["94309093","HE t-shirt white XL","HE футболка (XL) белая",4.0949999999999998,"Item",null,"Current ",125,"Off Trade","non beer-related","Visibility indoor",1,125,"n/a",null,0.21,0.21]
["94309094","HE t-shirt white XXL","HE футболка (XXL) белая",4.0949999999999998,"Item",null,"Current ",125,"Off Trade","non beer-related","Visibility indoor",1,125,"n/a",null,0.21,0.21]
["94304520","HE umbrella \"RAIN\"","HE зонт \"дождь\"",9.5939999999999994,"Item","Netherlands","Current ",35,null,"give away",null,1,500,"10x10x70",null,0.7,0.7]
["94305749","HE unibody 'star Heineken'","HE световой знак \"юнибоди\"",60.762000000000008,"Item","Netherlands","Current ",35,"On Trade","non beer-related","Visibility indoor",1,50,"83x13x14",null,1.5,1.8]
["94305320","HE Waiter's notepad (100 pcs.)","HE блокнот официанта (100 шт.)",12.35,"Pack","Netherlands","Current ",19,"On Trade","non beer-related","Visibility indoor",1,250,"7x14x25",null,0.7,0.7]
["88001320","HE waiterstray \"Beer\"","HE поднос официанта \"пиво\"",2.7170000000000001,"Item","Italy","Current ",55,"On Trade","beer-related","Visibility indoor",20,720,"36x36x14",null,0.4,0.4]
["94297521","HE watch \"Chronograph\"","HE часы \"хронограф\"",53.716000000000001,"Item","Netherlands","Current ",65,"Off Trade","give away","Presents",1,100,"25x7x4",null,0.05,0.18]
["94307524","HE watch luxury lady's version","HE часы престижные женская версия",23.568999999999999,"Item","Netherlands","Current ",45,"Off Trade","give away","Presents",1,100,"25x5x2",null,0.6,0.6]
["94307522","HE watch luxury men's version","HE часы престижные мужская версия",23.568999999999999,"Item","Netherlands","Current ",45,"Off Trade","give away","Presents",1,400,"25x5x1.5",null,0.08,0.08]
["94294020","HE wobbler 'crowncork' (10 pcs.)","HE вобблер \"крышка\" (10 шт.)",4.42,"Box","Netherlands","Current ",47,"Off Trade","non beer-related","Visibility indoor",1,20,"n/a",null,0.3,0.35]